Cogmind - Beta 12 @@@ ROGUE MODE // 2023.05.31 @ 06:57:05 Player: kicktown Result: Destroyed by Y-45 Defender with Beam Rifle Performance ------------- Evolutions (1) 500 Regions Visited (3) 600 Robots Destroyed (0) 0 Value Destroyed (0) 0 Prototype IDs (1) 20 Alien Tech Used (0) 0 Bonus (200) 200 TOTAL SCORE: 1320 Bonus ------- Pacifist 200 Cogmind --------- Core Integrity 0/400 Matter 277/300 Energy 22/100 System Corruption 0% Temperature Cool (9) Movement Core (100) Ox1 Location -9/Materials Parts ------- > --- POWER (1) -------- (None) > --- PROPULSION (2) --- (None) > --- UTILITY (4) ------ Small Storage Unit Weight Redist. System > --- WEAPON (2) ------- (None) > --- INVENTORY (8) ---- Weight Redist. System Weight Redist. System Weight Redist. System Mini Grenade Launcher Peak State ------------ > --- POWER ------------ Ion Engine > --- PROPULSION ------- Hover Unit > --- UTILITY ---------- Weight Redist. System > --- WEAPON ----------- Advanced Beam Cannon Mining Laser > --- INVENTORY -------- Small Laser [Rating: 8] Favorites ----------- Power Ion Engine Engine Ion Engine Propulsion Hover Unit Leg Aluminum Leg Hover Unit Hover Unit Utility Weight Redist. System Device Weight Redist. System Storage Small Storage Unit Weapon Small Laser Energy Gun Small Laser Energy Cannon Advanced Beam Cannon Special Weapon Mining Laser Build | -11 -10 -10 -9 ------- Run | Jun Mat Min Mat Slots Evolved 2 | . . . 2 Power . | . . . . Propulsion . | . . . . Utility 2 | . . . 2 Weapon . | . . . . Parts Attached 11 | . 7 . 4 Power 1 | . 1 . . Engine 1 | . 1 . . Core . | . . . . Reactor . | . . . . Propulsion 3 | . 1 . 2 Treads . | . . . . Leg 2 | . . . 2 Wheel . | . . . . Hover 1 | . 1 . . Flight . | . . . . Utility 3 | . 1 . 2 Device 2 | . 1 . 1 Storage 1 | . . . 1 Processor . | . . . . Hackware . | . . . . Protection . | . . . . Artifact . | . . . . Weapon 4 | . 4 . . Energy Gun 2 | . 2 . . Energy Cannon 1 | . 1 . . Ballistic Gun . | . . . . Ballistic Cannon . | . . . . Launcher . | . . . . Special Weapon 1 | . 1 . . Impact Weapon . | . . . . Slashing Weapon . | . . . . Piercing Weapon . | . . . . Special Melee Weapon . | . . . . Unidentified Prototypes 1 | . 1 . . Parts Lost 7 | . . . 7 Power 1 | . . . 1 Propulsion 3 | . . . 3 Utility 1 | . . . 1 Weapon 2 | . . . 2 Highest Loss Streak 7 | . . . 7 To Critical Strikes . | . . . . Average Slot Usage (%) 47 | . 47 71 40 Engine 9 | . 11 14 6 Hover 10 | . 12 14 6 Device 8 | . 5 14 11 Energy Gun 8 | . 9 14 6 Special Weapon 7 | . 7 14 6 Naked Turns 11 | . 11 . . Heaviest Build 7 | . 7 7 7 Greatest Support 26 | 3 12 12 26 Greatest Overweight (x) 1 | . . . 1 Average Overweight (x) . | . . . . Largest Inventory Capacity 8 | 5 5 5 8 Average Capacity 5 | 5 5 5 5 Most Carried 5 | . 5 4 4 Average Carried 2 | . 1 4 3 Final Capacity 8 | 5 5 5 8 Final Carried 4 | . 4 4 4 Class Distribution -------------------- 100% | Mutant Dominant Class ---------------- Mutant | -10/Materials Mutant | -10/Mines Mutant | -9/Materials Resources | -11 -10 -10 -9 ----------- Run | Jun Mat Min Mat Matter Collected 236 | 200 . . 36 Remotely . | . . . . Salvage Created . | . . . . Parts . | . . . . Haulers Intercepted . | . . . . Recyclers Shooed . | . . . . Parts Field Recycled . | . . . . Retrieved Matter . | . . . . Parts Self-Destructed . | . . . . Prevented . | . . . . Kills | -11 -10 -10 -9 ------- Run | Jun Mat Min Mat Combat Hostiles Destroyed . | . . . . Classes Destroyed . | . . . . Best Kill Streak . | . . . . Combat Bots Only . | . . . . Max Kills in Single Turn . | . . . . Gunslinging . | . . . . Exploded . | . . . . Melee . | . . . . Uniques/NPCs Destroyed . | . . . . Combat | -11 -10 -10 -9 -------- Run | Jun Mat Min Mat Damage Taken 750 | . . 26 724 Core 424 | . . 10 414 Absorbed by Shields . | . . . . Core Remaining (%) 98 | 100 . 96 . Volleys Fired 8 | . 3 . 5 Largest 1 | . 1 . 1 Hottest 100 | . 100 . 100 Shots Fired 8 | . 3 . 5 Gun . | . . . . Cannon 1 | . 1 . . Launcher . | . . . . Special 7 | . 2 . 5 Kinetic . | . . . . Thermal 8 | . 3 . 5 Explosive . | . . . . Electromagnetic . | . . . . Robot Hit Streak . | . . . . Robot Miss Streak . | . . . . Penetration Max . | . . . . Secondary Targets . | . . . . Shots Hit Robots . | . . . . Core Hits 1 | . . . 1 Critical Kills . | . . . . Critical Parts Destroyed . | . . . . Critical Strikes . | . . . . Melee Attacks . | . . . . Impact . | . . . . Slashing . | . . . . Piercing . | . . . . Sneak Attacks . | . . . . Combat Hostiles . | . . . . Follow-up Attacks . | . . . . Damage Inflicted 24 | . . . 24 Guns . | . . . . Cannons . | . . . . Explosions . | . . . . Melee . | . . . . Ramming 24 | . . . 24 Kinetic . | . . . . Thermal . | . . . . Explosive . | . . . . Electromagnetic . | . . . . Impact . | . . . . Slashing . | . . . . Piercing . | . . . . Highest Corruption . | . . . . Average Corruption . | . . . . Corruption Purged . | . . . . Corruption Blocked . | . . . . Overload Shots . | . . . . Overflow Damage . | . . . . Projectiles . | . . . . Explosions . | . . . . Melee . | . . . . Knockbacks . | . . . . Impact . | . . . . Kinetic . | . . . . Secondary . | . . . . Self-Inflicted Damage 11 | . . . 11 Shots . | . . . . Rammed 4 | . 1 . 3 Targets Rammed 5 | . 1 . 4 Kicked 1 | . . . 1 Crushed . | . . . . Highest Temperature 31 | . 31 10 13 Average Temperature 11 | . 17 10 7 Received Heat Transfer 309 | . . 33 276 Siege Activations . | . . . . Robots Corrupted . | . . . . Combat Hostiles . | . . . . Parts Fried . | . . . . Impact Corruptions . | . . . . Robots Melted . | . . . . Combat Hostiles . | . . . . Parts Melted . | . . . . Heat Transferred . | . . . . Parts Sabotaged . | . . . . Parts Stolen . | . . . . Parts Stripped . | . . . . Power Chain Reactions . | . . . . Missiles Intercepted . | . . . . Alert | -11 -10 -10 -9 ------- Run | Jun Mat Min Mat Peak Influence 47 | . 47 18 35 Initial 18 | . . 18 6 Average 15 | . 20 18 7 Maximum Alert Level . | . . . . Low Security (%) 100 | 100 100 100 100 Level 1 . | . . . . Level 2 . | . . . . Level 3 . | . . . . Level 4 . | . . . . Level 5 . | . . . . High Security . | . . . . Max Security . | . . . . Squads Dispatched 1 | . . . 1 Investigation . | . . . . Extermination . | . . . . Reinforcement 1 | . . . 1 Assault . | . . . . Garrison . | . . . . Intercept . | . . . . Searches Triggered . | . . . . Construction Impeded . | . . . . Haulers Reinforced . | . . . . Active Scanning Responses . | . . . . Cargo Convoy Interrupts . | . . . . Stealth | -11 -10 -10 -9 --------- Run | Jun Mat Min Mat Distress Signals 2 | . . . 2 Communications Jammed . | . . . . Distress Signals . | . . . . Times Spotted 31 | . 4 2 25 Peak Tracking Total 20 | . 3 2 20 Tactical Retreats 1 | . . . 1 Traps | -11 -10 -10 -9 ------- Run | Jun Mat Min Mat Traps Triggered . | . . . . Indirectly . | . . . . Trap Hack Attempts . | . . . . Triggered . | . . . . Disarmed . | . . . . Reprogrammed . | . . . . Reused . | . . . . Traps Extracted . | . . . . Installed . | . . . . Triggered . | . . . . Machines | -11 -10 -10 -9 ---------- Run | Jun Mat Min Mat Machines Disabled . | . . . . Max in Single Turn . | . . . . Machines Repaired . | . . . . Machines Sabotaged . | . . . . Overloaded Fab Kills . | . . . . Hacking | -11 -10 -10 -9 --------- Run | Jun Mat Min Mat Machines Accessed . | . . . . Terminals . | . . . . Fabricators . | . . . . Repair Stations . | . . . . Recycling Units . | . . . . Scanalyzers . | . . . . Garrison Access . | . . . . Total Hacks . | . . . . Successful . | . . . . Failed . | . . . . Catastrophic . | . . . . Database Lockouts . | . . . . Manual . | . . . . Terminals . | . . . . Fabricators . | . . . . Repair Stations . | . . . . Recycling Units . | . . . . Scanalyzers . | . . . . Garrison Access . | . . . . Terminal Hacks . | . . . . Fabricator Hacks . | . . . . Repair Station Hacks . | . . . . Recycling Unit Hacks . | . . . . Scanalyzer . | . . . . Garrison Access Hacks . | . . . . Unauthorized Hacks . | . . . . Terminals . | . . . . Fabricators . | . . . . Repair Stations . | . . . . Recycling Units . | . . . . Scanalyzers . | . . . . Garrison Access . | . . . . Data Cores Recovered . | . . . . Used . | . . . . Hacking Detections . | . . . . Full Trace Events . | . . . . Feedback Events . | . . . . Feedback Blocked . | . . . . Robot Schematics Acquired . | . . . . Robots Built . | . . . . Authchips . | . . . . Time . | . . . . Total Robot Build Rating . | . . . . Part Schematics Acquired . | . . . . Parts Built . | . . . . Authchips . | . . . . Time . | . . . . Total Part Build Rating . | . . . . Parts Repaired . | . . . . Time . | . . . . Parts Recycled . | . . . . Recycled Matter . | . . . . Retrieved Matter . | . . . . Retrieved Components . | . . . . Parts Scanalyzed . | . . . . Part Schematics Acquired . | . . . . Parts Damaged . | . . . . Bothacking | -11 -10 -10 -9 ------------ Run | Jun Mat Min Mat Used RIF Installer . | . . . . Robots Hacked . | . . . . Non-combat . | . . . . Combat . | . . . . Robot Hacks Applied . | . . . . Relay Couplers Released . | . . . . Fabnet Peak Effective % . | . . . . Robots Rewired . | . . . . Allies Hacked . | . . . . Hacks Repelled . | . . . . Allies | -11 -10 -10 -9 -------- Run | Jun Mat Min Mat Total Allies . | . . . . Largest Group . | . . . . Highest-Rated Group . | . . . . Highest-Rated Ally . | . . . . Total Orders . | . . . . Ally Attacks . | . . . . Total Damage . | . . . . Kills . | . . . . Allies Corrupted . | . . . . Allies Melted . | . . . . Intel | -11 -10 -10 -9 ------- Run | Jun Mat Min Mat Robot Analysis Total . | . . . . Derelict Logs Recovered . | . . . . Drone Launches . | . . . . Drone Recoveries . | . . . . Exploration | -11 -10 -10 -9 ------------- Run | Jun Mat Min Mat Turns Passed 252 | 10 119 39 84 Spaces Moved 319 | 20 158 65 76 Core 66 | 20 21 . 25 Treads . | . . . . Legs 11 | . . . 11 Wheels . | . . . . Hover 242 | . 137 65 40 Flight . | . . . . Fastest Speed 50 | 50 50 60 50 Average Speed 60 | 50 58 60 67 Slowest Speed 120 | 50 60 60 120 Overloaded Moves . | . . . . Propulsion Burnouts . | . . . . Robots Hopped . | . . . . Cave-ins Triggered . | . . . . Exploration Rate (%) 16 | 4 30 13 17 Regions Visited 3 Branch Regions 1 Pre-discovered Areas . | . . . . Known Exits Taken . | . . . . Unknown Exits Taken 3 | 1 1 1 . Scrap Searched . | . . . . Spaces Dug 7 | . 2 . 5 Terrain Destroyed 7 | . 2 . 5 Melee . | . . . . Projectile 7 | . 2 . 5 AOE . | . . . . Terrain Rammed . | . . . . Walls Destroyed . | . . . . Machines Disabled . | . . . . Actions | -11 -10 -10 -9 --------- Run | Jun Mat Min Mat Total 349 | 19 174 64 92 Wait 2 | . . . 2 Move 316 | 19 157 64 76 Hop . | . . . . Pick Up 5 | . 4 . 1 Fast Attach 9 | . 6 . 3 Attach 2 | . 1 . 1 Detach 1 | . 1 . . Swap . | . . . . Drop 1 | . 1 . . Fire 8 | . 3 . 5 Melee . | . . . . Ram 4 | . 1 . 3 Kick 1 | . . . 1 Crush . | . . . . Escape Stasis . | . . . . Rewire . | . . . . Trap . | . . . . Miscellaneous . | . . . . Route ------- -11/Junkyard -10/Materials -10/Mines -9/Materials (discovered 1 exit: [*Min]) History --------- Turn | Location | Event 4 | -11/Junkyard | Discovered new exit (range 14) 11 | -11/Junkyard | Entered Materials 54 | -10/Materials | Discovered new exit (range 10) 130 | -10/Materials | Entered Mines 158 | -10/Mines | Discovered new exit (range 10) 169 | -10/Mines | Entered Materials 169 | -9/Materials | Evolved 2 slots: Utility x2 235 | -9/Materials | Core integrity fell below 50% 244 | -9/Materials | Core integrity fell below 20% 252 | -9/Materials | Discovered new exit (range 13) 253 | -9/Materials | Destroyed by Y-45 Defender with Beam Rifle Last Messages --------------- 00221_ Weight Redist. System destroyed. 00223_ Acquired Aluminum Leg. 00225_ Acquired 36 matter. 00225_ R-06 Scavenger collects Corrupted Aluminum Leg. 00226_ Kicked G-47 Trooper out of the way. 00227_ C-30 ARC bursts open, deploying its payload. 00227_ S-10 Pest unfolds itself. 00229_ U-05 Engineer builds a Wall. 00232_ Aluminum Leg destroyed. 00235_ Acquired Sml. Storage Unit. 00235_ W-16 Scout sends out distress signal. 00238_ U-05 Engineer builds a Door. 00239_ Aluminum Leg destroyed. 00240_ U-05 Engineer lays Concrete. 00245_ ALERT: Hostiles spotted, dispatching reinforcements to Terminal M001. 00248_ Acquired Mni. Grenade Launcher. 00250_ O-16 Technician sends out distress signal. 00250_ O-16 Technician: "IFF HANDSHAKE FAILED. SECURING TERMINAL." 00252_ EXIT=FOUND Map ----- +----------------------------------------------------+ | ??????????????????????# #?????????????? | | ??????????????????????# ####??????????? | | ??????????????????????# ##?????????? | | ??????????????????????######" !#?????????? | | ?????????????????????? "%" !#?????????? | | ?????????????????????########### !#?????????? | | ???????????????????????????????# !#?????????? | | ???????????????????????????????# !##?????????? | | ??????????????????????????????## ####??????????? | | ???????????????????????######## ##########+##? | | ????????????????????"" # | | ????????????????????S" / | | ?????????????????????" # | | ???????????????????????### #### ############## | | ?????????????????????????# ######g####???????????? | | ?????????????????????????# ## #???????????? | | ?????????????????????????#a## s #???????????? | | ?????????????????????????# ## #???????????? | | ?????????????????????????# ## ss #???????????? | | ????????????????????????## ##st ! #???????????? | | ????????????????????????# #g #???????????? | | ????????????????????????# s #???????????? | | ????????????????????????# # #???????????? | | ????????????????????????# # #???????????? | | ???????????????????????## ##########???????????? | | ???????????????????????# @ #???????????????????? | | ???????????????????????# [ ????????????? | | ???????????????????????+ Y < ????????? | | ???????????????????????# u rk?????????? | | ???????????????????????# ##### ?????????? | | ???????????????????????## ##??????!"!??????????? | | ????????????????????????# #????????????????????? | | ????????????????????????# +????????????????????? | | ???????????????????????? #????????????????????? | | ????????????????????????# #????????????????????? | | ????????????????????????# ss#????????????????????? | | ????????????????????????#s #????????????????????? | | ????????????????????????? #????????????????????? | | ????????????????????????? #????????????????????? | | ????????????????????????? #????????????????????? | | ????????????????????????? o ?????????????????????? | | ?????????????????????????????????????????????????? | | ?????????????????????????????????????????????????? | | ?????????????????????????????????????????????????? | | ?????????????????????????????????????????????????? | | ?????????????????????????????????????????????????? | | ?????????????????????????????????????????????????? | | ?????????????????????????????????????????????????? | | ?????????????????????????????????????????????????? | | ?????????????????????????????????????????????????? | +----------------------------------------------------+ Best States ------------- Heat Dissipation 28 Energy Generation 10 Energy Capacity 250 Matter Stores 300 Matter Capacity 300 Sight Range 16 Terrain Scan Density 10 Additional Mass Support 6 Evasion (%) 53 Item Schematics ----------------- None Robot Schematics ------------------ None Fabricated ------------ Nothing Alien Tech Used ----------------- None Achievements -------------- None Challenges ------------ None Game ------ Seed TransportSuperchargedJammer Manual? 0 Play Time 00:09:57 Cumulative 50.6 hours Start 2023.05.31 @ 06:49:26 End 2023.05.31 @ 06:57:05 Sessions 1 Manual Loads 0 Difficulty Rogue Special Mode None Game No. 39 Rogue 39 Adventurer 0 Explorer 0 Win Type - Total 0 Types 0/0/0/0/0/0/0/0/0 Lore% 24 Gallery% 42 Achievement% 32 Wizard Run 0 Options --------- ASCII 0 Keyboard 0 Movement Mouse Keybinds 0 Fullscreen 2 Font 18/TerminusBold Map View 76x50 Tactical HUD 1 Map Filters NONE Filters NONE Steam 1 RUN: 6c8b18d8-0b95-4d16-8b75-909b510154eb